Cogmind - Beta 14 @@@ ROGUE MODE // 2024.11.27 @ 14:51:08 Player: skye Result: Destroyed by S-10 Pest with Light Assault Rifle Performance ------------- Evolutions (0) 0 Regions Visited (2) 400 Robots Destroyed (16) 80 Value Destroyed (409) 409 Prototype IDs (0) 0 Alien Tech Used (0) 0 Bonus (0) 0 TOTAL SCORE: 889 Bonus ------- None Cogmind --------- Core Integrity 0/250 Matter 238/300 Energy 250/250 System Corruption 0% Temperature Cool (0) Movement Walking (130) Location -10/Subcaves Parts ------- > --- POWER (1) -------- Ion Engine > --- PROPULSION (2) --- Aluminum Leg Makeshift Leg > --- UTILITY (2) ------ Improved Heat Sink Small Storage Unit > --- WEAPON (2) ------- Subdweller Machine Gun Mining Claw > --- INVENTORY (8) ---- Aluminum Leg Wheel Subdweller Monowheel Improved Terrain Scanner ECM Suite Battle Cannon Grenade Launcher Peak State ------------ > --- POWER ------------ Ion Engine > --- PROPULSION ------- Aluminum Leg Makeshift Leg > --- UTILITY ---------- Improved Heat Sink Small Storage Unit > --- WEAPON ----------- Subdweller Machine Gun Mining Claw > --- INVENTORY -------- Aluminum Leg Wheel Subdweller Monowheel Improved Terrain Scanner ECM Suite Battle Cannon Grenade Launcher [Rating: 14] Favorites ----------- Power Ion Engine Engine Ion Engine Power Core Light Nuclear Core Propulsion Aluminum Leg Leg Aluminum Leg Utility Small Storage Unit Device Improved Heat Sink Storage Small Storage Unit Weapon Medium Laser Energy Gun Medium Laser Ballistic Gun Subdweller Machine Gun Ballistic Cannon Battle Cannon Launcher Grenade Launcher Slashing Weapon Mining Claw Build | -11 -10 -10 ------- Run | Yrd Mat Sub Slots Evolved . | . . . Power . | . . . Propulsion . | . . . Utility . | . . . Weapon . | . . . Parts Attached 26 | 7 11 8 Power 6 | 1 3 2 Engine 5 | 1 2 2 Core 1 | . 1 . Reactor . | . . . Propulsion 8 | 2 5 1 Treads . | . . . Leg 8 | 2 5 1 Wheel . | . . . Hover . | . . . Flight . | . . . Utility 3 | 2 1 . Device 2 | 1 1 . Storage 1 | 1 . . Processor . | . . . Hackware . | . . . Protection . | . . . Artifact . | . . . Weapon 9 | 2 2 5 Energy Gun 3 | 1 2 . Energy Cannon . | . . . Ballistic Gun 2 | 1 . 1 Ballistic Cannon 1 | . . 1 Launcher 1 | . . 1 Special Weapon . | . . . Impact Weapon . | . . . Slashing Weapon 2 | . . 2 Piercing Weapon . | . . . Special Melee Weapon . | . . . Unidentified Prototypes . | . . . Parts Lost 7 | . 5 2 Power 1 | . 1 . Propulsion 3 | . 2 1 Utility 1 | . 1 . Weapon 2 | . 1 1 Highest Loss Streak 2 | . 2 1 To Critical Strikes . | . . . Average Slot Usage (%) 94 | . 90 99 Engine 13 | . 12 14 Leg 27 | . 26 27 Device 13 | . 12 14 Storage 14 | . 14 14 Energy Gun 10 | . 15 2 Ballistic Gun 8 | . 5 11 Ballistic Cannon 1 | . . 3 Slashing Weapon 3 | . . 8 Peak Build Rating 14 | 9 12 14 Average Rating 9 | 6 8 11 On Entrance 6 | . 9 9 Naked Turns . | . . . Heaviest Build 18 | 15 15 18 Greatest Support 30 | 20 20 30 Greatest Overweight (x) 1 | . 1 1 Average Overweight (x) . | . . . Largest Inventory Capacity 8 | 8 8 8 Average Capacity 7 | 7 8 8 Most Carried 8 | 6 8 8 Average Carried 7 | 1 7 7 Final Capacity 8 | 8 8 8 Final Carried 7 | 6 7 7 Class Distribution -------------------- 100% | Mutant Dominant Class ---------------- Mutant | -10/Materials Mutant | -10/Subcaves Resources | -11 -10 -10 ----------- Run | Yrd Mat Sub Matter Collected 538 | 198 270 70 Remotely . | . . . Salvage Created 664 | 175 439 50 Parts 33 | 12 18 3 Haulers Intercepted 1 | . 1 . Recyclers Shooed . | . . . Parts Field Recycled . | . . . Retrieved Matter . | . . . Parts Self-Destructed 4 | . . 4 Prevented . | . . . Kills | -11 -10 -10 ------- Run | Yrd Mat Sub Combat Hostiles Destroyed 9 | . 7 2 Guns 6 | . 5 1 AOE 1 | . . 1 Classes Destroyed 5 | 2 2 1 Tunneler 4 | 4 . . Hauler 1 | . 1 . Recycler 2 | 1 1 . Grunt 7 | . 7 . Subdweller 2 | . . 2 Best Kill Streak 5 | 5 2 1 Combat Bots Only 2 | . 2 1 Max Kills in Single Turn 2 | 2 1 1 Gunslinging . | . . . Exploded 1 | . . 1 Melee . | . . . Uniques/NPCs Destroyed . | . . . Combat | -11 -10 -10 -------- Run | Yrd Mat Sub Hostile Shots Fired 102 | . 78 24 Missed 25 | . 18 7 Damage Taken 1050 | . 767 283 Core 250 | . 217 33 Absorbed by Shields . | . . . Regen/Repaired (Parts) 64 | . 64 . Core Remaining (%) 100 | 100 . . Volleys Fired 88 | 6 63 19 Largest 2 | 2 2 2 Hottest 100 | 70 70 100 Shots Fired 138 | 12 106 20 Gun 136 | 12 106 18 Cannon . | . . . Launcher 2 | . . 2 Special . | . . . Kinetic 50 | 6 43 1 Thermal 86 | 6 63 17 Explosive 2 | . . 2 Electromagnetic . | . . . Robot Hit Streak 9 | 4 9 6 Robot Miss Streak 3 | 1 3 2 Penetration Max . | . . . Secondary Targets . | . . . Shots Hit Robots 90 | 8 67 15 Core Hits 29 | 6 19 4 Critical Kills . | . . . Critical Parts Destroyed . | . . . Critical Strikes 5 | 1 4 . Burn 5 | 1 4 . Melee Attacks 23 | . . 23 Impact . | . . . Slashing 23 | . . 23 Piercing . | . . . Sneak Attacks . | . . . Combat Hostiles . | . . . Follow-up Attacks . | . . . Damage Inflicted 1422 | 129 934 359 Guns 1170 | 129 880 161 Cannons . | . . . Explosions 251 | . 53 198 Melee . | . . . Ramming 1 | . 1 . Kinetic 446 | 66 380 . Thermal 724 | 63 500 161 Explosive 198 | . . 198 Electromagnetic 53 | . 53 . Impact . | . . . Slashing . | . . . Piercing . | . . . Highest Corruption . | . . . Average Corruption . | . . . Corruption Purged . | . . . Corruption Blocked . | . . . Overload Shots . | . . . Overflow Damage . | . . . Projectiles . | . . . Explosions . | . . . Melee . | . . . Knockbacks . | . . . Impact . | . . . Kinetic . | . . . Secondary . | . . . Self-Inflicted Damage 11 | . 11 . Shots 1 | . 1 . Rammed . | . . . Targets Rammed 1 | . 1 . Kicked 1 | . 1 . Crushed . | . . . Highest Temperature 314 | 36 314 . Average Temperature 112 | 16 122 . Received Heat Transfer 570 | . 480 90 Effects 3 | . 3 . Energy Bleed 3 | . 3 . Siege Activations . | . . . Robots Corrupted . | . . . Combat Hostiles . | . . . Parts Fried . | . . . Impact Corruptions . | . . . Robots Melted 2 | . 2 . Combat Hostiles 2 | . 2 . Parts Melted 4 | 1 3 . Heat Transferred 2516 | 259 1776 481 Parts Sabotaged . | . . . Parts Stolen . | . . . Parts Stripped . | . . . Power Chain Reactions . | . . . Alert | -11 -10 -10 ------- Run | Yrd Mat Sub Peak Influence 164 | 25 164 . Initial 16 | . 16 . Average 42 | 11 45 . Maximum Alert Level . | . . . Low Security (%) 100 | 100 100 . Level 1 . | . . . Level 2 . | . . . Level 3 . | . . . Level 4 . | . . . Level 5 . | . . . High Security . | . . . Max Security . | . . . Squads Dispatched 1 | . 1 . Investigation . | . . . Extermination . | . . . Reinforcement 1 | . 1 . Assault . | . . . Garrison . | . . . Intercept . | . . . Searches Triggered . | . . . Construction Impeded . | . . . Haulers Reinforced . | . . . Active Scanning Responses . | . . . Cargo Convoy Interrupts . | . . . Stealth | -11 -10 -10 --------- Run | Yrd Mat Sub Distress Signals 2 | . 2 . Communications Jammed . | . . . Distress Signals . | . . . Times Spotted 21 | . 14 7 Peak Tracking Total 6 | . 3 6 Tactical Retreats . | . . . Traps | -11 -10 -10 ------- Run | Yrd Mat Sub Traps Triggered 1 | . 1 . Indirectly . | . . . Trap Hack Attempts . | . . . Triggered . | . . . Disarmed . | . . . Reprogrammed . | . . . Reused . | . . . Traps Extracted . | . . . Installed . | . . . Triggered . | . . . Machines | -11 -10 -10 ---------- Run | Yrd Mat Sub Machines Disabled 1 | . 1 . Max in Single Turn 1 | . 1 . Machines Repaired . | . . . Machines Dismantled . | . . . Machines Sabotaged . | . . . Overloaded Fab Kills . | . . . Hacking | -11 -10 -10 --------- Run | Yrd Mat Sub Machines Accessed 10 | . 9 1 Terminals 7 | . 7 . Fabricators . | . . . Repair Stations 1 | . 1 . Recycling Units 1 | . 1 . Scanalyzers . | . . . Garrison Access . | . . . Total Hacks 29 | . 24 5 Successful 18 | . 13 5 Failed 11 | . 11 . Catastrophic . | . . . Database Lockouts . | . . . Manual 21 | . 19 2 Terminals 20 | . 20 . Fabricators . | . . . Repair Stations 2 | . 2 . Recycling Units 2 | . 2 . Scanalyzers . | . . . Garrison Access . | . . . Terminal Hacks 8 | . 3 5 Record 5 | . . 5 Branch Access Points 1 | . 1 . Terminal Index 1 | . 1 . Unreport Threat 1 | . 1 . Fabricator Hacks . | . . . Repair Station Hacks 2 | . 2 . Scan Component 1 | . 1 . Repair 1 | . 1 . Recycling Unit Hacks 1 | . 1 . Report Inventory 1 | . 1 . Scanalyzer . | . . . Garrison Access Hacks . | . . . Unauthorized Hacks 7 | . 7 . Terminals 6 | . 6 . Botnet 6 | . 6 . Fabricators . | . . . Repair Stations . | . . . Recycling Units 1 | . 1 . Reject 1 | . 1 . Scanalyzers . | . . . Garrison Access . | . . . Data Cores Recovered . | . . . Used . | . . . Hacking Detections 9 | . 9 . Full Trace Events 1 | . 1 . Feedback Events . | . . . Feedback Blocked . | . . . Robot Schematics Acquired . | . . . Robots Built . | . . . Authchips . | . . . Time . | . . . Total Robot Build Rating . | . . . Part Schematics Acquired . | . . . Parts Built . | . . . Authchips . | . . . Time . | . . . Total Part Build Rating . | . . . Parts Repaired 1 | . 1 . Time 26 | . 26 . Parts Recycled . | . . . Recycled Matter . | . . . Retrieved Matter . | . . . Retrieved Components . | . . . Parts Scanalyzed . | . . . Part Schematics Acquired . | . . . Parts Damaged . | . . . Bothacking | -11 -10 -10 ------------ Run | Yrd Mat Sub Used RIF Installer . | . . . Robots Hacked . | . . . Non-combat . | . . . Combat . | . . . Robot Hacks Applied . | . . . Relay Couplers Released . | . . . Fabnet Peak Effective % . | . . . Robots Rewired . | . . . Allies Hacked . | . . . Hacks Repelled . | . . . Allies | -11 -10 -10 -------- Run | Yrd Mat Sub Total Allies . | . . . Largest Group . | . . . Highest-Rated Group . | . . . Highest-Rated Ally . | . . . Total Orders . | . . . Ally Attacks . | . . . Total Damage . | . . . Kills . | . . . Allies Corrupted . | . . . Allies Melted . | . . . Intel | -11 -10 -10 ------- Run | Yrd Mat Sub Robot Analysis Total . | . . . Derelict Logs Recovered . | . . . Drone Launches . | . . . Drone Recoveries . | . . . Exploration | -11 -10 -10 ------------- Run | Yrd Mat Sub Turns Passed 1907 | 112 1049 746 Spaces Moved 1254 | 69 674 511 Core 6 | 6 . . Treads . | . . . Legs 1248 | 63 674 511 Wheels . | . . . Hover . | . . . Flight . | . . . Fastest Speed 50 | 50 120 120 Average Speed 121 | 113 121 121 Slowest Speed 190 | 120 190 190 Overloaded Moves . | . . . Propulsion Burnouts . | . . . Robots Hopped . | . . . Cave-ins Triggered . | . . . Exploration Rate (%) 37 | 3 75 33 Regions Visited 2 Branch Regions 1 Pre-discovered Areas 1 | . . 1 Known Exits Taken . | . . . Unknown Exits Taken 2 | 1 1 . Scrap Searched . | . . . Spaces Dug . | . . . Terrain Destroyed 13 | . . 13 Melee . | . . . Projectile . | . . . AOE 13 | . . 13 Terrain Rammed . | . . . Walls Destroyed . | . . . Machines Disabled . | . . . Actions | -11 -10 -10 --------- Run | Yrd Mat Sub Total 1457 | 87 798 572 Wait 38 | . 36 2 Move 1252 | 68 673 511 Hop . | . . . Pick Up 18 | 6 8 4 Fast Attach 16 | 7 7 2 Attach 4 | . 2 2 Detach . | . . . Swap 6 | . 2 4 Drop 11 | . 6 5 Fire 88 | 6 63 19 Melee 23 | . . 23 Ram . | . . . Kick 1 | . 1 . Crush . | . . . Escape Stasis . | . . . Rewire . | . . . Trap . | . . . Miscellaneous . | . . . Route ------- -11/Scrapyard -10/Materials (discovered 5 exits: [*Mat x3] / *Min / *Sub) -10/Subcaves (discovered 2 exits: [*Mat] / *Rec) History --------- Turn | Location | Event 26 | -11/Scrapyard | Discovered new exit (range 15) 113 | -11/Scrapyard | Entered Materials 254 | -10/Materials | Discovered new exit (range 16) 310 | -10/Materials | Build established: Mutant 337 | -10/Materials | Discovered new exit (range 16) 357 | -10/Materials | Core integrity fell below 50% 459 | -10/Materials | Repaired Aluminum Leg 577 | -10/Materials | Core integrity fell below 20% 706 | -10/Materials | Identified exit to Mines 1130 | -10/Materials | Discovered new exit (range 16) 1135 | -10/Materials | Discovered new exit (range 12) 1162 | -10/Materials | Entered Subcaves 1403 | -10/Subcaves | Visited Clippyterm 1407 | -10/Subcaves | Identified exit to Recycling 1407 | -10/Subcaves | Learned location of Extension (-5) 1441 | -10/Subcaves | A swath of the cavern ceiling suddenly collapsed 1533 | -10/Subcaves | Shifting Twisted Machinery released Sub. Power Source 1556 | -10/Subcaves | Shifting Twisted Machinery released Sub. Monowheel 1888 | -10/Subcaves | Discovered new exit (range 14) 1908 | -10/Subcaves | Destroyed by S-10 Pest with Light Assault Rifle Last Messages --------------- Sub. Monowheel falls loose from the Twisted Machinery. 01572_ Subatomizers dissect the Ion Engine, destroying it. 01672_ Dropped Sub. Monowheel. 01672_ Acquired Sub. Monowheel. 01721_ Subatomizers dissect the Sub. Monowheel. 01758_ Sub. Power Source shoots sparks and powers down. 01761_ Dropped Broken Sub. Power Source. 01805_ LX-8TE(u) tweaks Twisted Machinery. 01844_ LX-8TE(u) builds Twisted Machinery. 01878_ Subatomizers dissect the Mak. Leg. 01884_ Aluminum Leg destroyed. 01888_ EXIT=FOUND 01893_ Subatomizers dissect the Mak. Leg. 01900_ 11-93G(R): "OHNO!" 01902_ Acquired Mak. Leg. 01905_ Subatomizers dissect the Mak. Power Source. Map ----- +----------------------------------------------------+ | #??????????????????????????????????????????????? | | #??????????????????????????????????????????????? | | ##??????????????????????????????????????????????? | | #???????????????????????????????????????????????? | | #???????????????????????????????????????????????? | | #???????????????????????????????????????????????? | | #???????????????????????????????????????????????? | | #???????????????????????????????????????????????? | | #???????????????????????????????????????????????? | | ##???????????????????????????????????????????????? | | ###??????????????????????????????????????????????? | | #??????????????????????????????????????????????? | | #??????????????????????????????????????????????? | | #??????????????????????????????????????????????? | | #??????????????????????????????????????????????? | | #??????????????????????????????????????????????? | | ##??????????????????????????????????????????????? | | ###??????????????????????????????????????????????? | | # #????????????????????????##????????????????????? | | #???????????????????????# ##???????????????????? | | #??????????????????????? #???????????????????? | | #???????????????????#### #???????????????????? | | ##???????" ????????# ##??###?????????????? | | "#???????" s###### < ## ##????????????? | | "" ##??????""t % %* #????????????? | | " #?????> @ #???????????????? | | " ###????""t s ##???????????????? | | """ ##???" ######## ######????????????????? | | " "" #??????????????### ##????????????????????? | | " "" ##????????????## %##??????? ???????????? | | # """ ##???????????# #### #?????????? | | #####" ##??????????# #??????????? | | ????## ##???####### #### #??????????? | | ?????## #??## ## # ##???????##??????????? | | ?????## ###??# ##???????????????????? | | ?????# ##???# #???????????????????? | | ?????## #???# ## ### ##???????????????????? | | ?????# ##???# ##### ## #????????????????????? | | ?????# #???## #???? ???????????????????? | | ?????# ##### #????^ ??????????????????? | | ?????## #???? ? # ?????????????????? | | ??????# ####? ## ????????????????? | | ?????## #?# ^##? #???????????????? | | ?????# #??# #??? ???????????????? | | ?????## ##??? ???? ??????????????? | | ??????## #####???? ??????????????????????? | | ???????# ##????????????????????????????????? | | ??????# ##?????????????????????????????????? | | ????? ##??????????????????????????????????? | | ????# ##???????????????????????????????????? | +----------------------------------------------------+ Best States ------------- Heat Dissipation 39 Energy Generation 15 Energy Capacity 250 Matter Stores 300 Matter Capacity 300 Sight Range 16 Terrain Scan Range 16 Terrain Scan Density 10 Evasion (%) 55 Item Schematics ----------------- None Robot Schematics ------------------ None Fabricated ------------ Nothing Alien Tech Used ----------------- None Achievements -------------- None Challenges ------------ None Game ------ Seed WardroneMatterDoomcannon Manual? 0 Play Time 00:23:55 Cumulative 77.0 hours Start 2024.11.27 @ 13:58:40 End 2024.11.27 @ 14:51:08 Sessions 1 Manual Loads 0 Difficulty Rogue Special Mode None Game No. 98 Rogue 54 Adventurer 44 Explorer 0 Win Type - Total 0 Types 0/0/0/0/0/0/0/0/0 Lore% 21 Gallery% 48 Achievement% 35 Wizard Run 0 Options --------- Layout 1 ASCII 0 Keyboard 1 Movement Vi Keybinds 0 Fullscreen 1 Font 24/Terminus Map View 50x40 Zoom Use 0% Tactical HUD 1 Map Filters NONE Filters NONE Steam 1 RUN: bf8fd7db-fb6a-4725-b85c-68149ab13b6b